bitfinex-derivatives/quotes_ETHF0:USTF0_20250420
["timestamp","ask_amount","ask_price","bid_price","bid_amount"]
[1745119891109,5.13468,1615.4,1615.3,4.06134934]
[1745119891310,5.13468,1615.4,1615.3,4.84323802]
[1745119892312,5.13468,1615.4,1615.3,4.84312315]
[1745119892714,5.13468,1615.4,1615.3,4.84300371]
[1745119893412,5.13468,1615.4,1615.3,4.84298213]
[1745119893613,5.13468,1615.4,1615.3,4.02007868]
[1745119893912,3.8965,1615.4,1615.3,6.4966821]
[1745119894113,3.8965,1615.4,1615.3,7.3115821]
[1745119894310,3.8965,1615.4,1615.3,6.48867868]
[1745119894507,3.8965,1615.4,1615.3,7.31158031]
[1745119895115,5.13468,1615.4,1615.3,7.31156395]
[1745119895819,5.13468,1615.4,1615.3,5.25847395]
[1745119896114,5.13468,1615.4,1615.3,0.78188868]
[1745119896314,8.8965,1615.4,1615.0,10.44686]
[1745119896507,5.792,1615.3,1615.0,12.44686]
[1745119896709,1.23841,1615.1,1615.0,12.44686]
[1745119896912,1.23841,1615.1,1615.0,7.41738998]
[1745119897112,3.46641,1615.1,1615.0,6.17892998]
[1745119897614,3.46641,1615.1,1615.0,5.3564]
[1745119898217,6.67421,1615.1,1615.0,1.6489]
[1745119898416,1.23848,1615.0,1614.9,0.8175]
[1745119898611,2.96138,1615.0,1614.9,0.8175]
[1745119898815,2.96138,1615.0,1614.7,3.78725]
[1745119898816,1.23861,1614.9,1614.7,3.78725]
[1745119899121,2.96151,1614.9,1614.8,4.5574]
[1745119899505,2.96151,1614.9,1614.6,7.09074]
[1745119899506,1.23864,1614.8,1614.6,9.09074]
[1745119899717,1.23871,1614.7,1614.5,9.24]
[1745119899919,1.23871,1614.7,1614.6,3.7399]
[1745119900115,3.46671,1614.7,1614.6,3.23879]
[1745119900418,3.46671,1614.7,1614.6,2.0]
[1745119900811,3.46671,1614.7,1614.6,3.6522]
[1745119901728,3.46671,1614.7,1614.6,1.6522]
[1745119902621,2.228,1614.7,1614.6,1.6522]
[1745119902919,6.67451,1614.7,1614.6,1.6522]
[1745119903105,5.4358,1614.7,1614.6,2.89099]
[1745119903310,6.67451,1614.7,1614.6,1.6522]
[1745119905519,6.67451,1614.7,1614.6,2.89099]
[1745119906323,5.4358,1614.7,1614.6,2.89099]
[1745119906723,6.67451,1614.7,1614.6,1.6522]
[1745119908524,5.4358,1614.7,1614.6,2.89099]
[1745119908726,6.67451,1614.7,1614.6,1.6522]
[1745119920641,3.46671,1614.7,1614.6,1.6522]
[1745119921037,6.67451,1614.7,1614.6,1.6522]
[1745119921554,7.52551,1614.7,1614.6,1.6522]
[1745119922650,1.23879,1614.6,1614.5,1.6481]
[1745119922954,5.16079,1614.6,1614.5,3.291]
[1745119923252,7.38879,1614.6,1614.5,3.291]
[1745119923446,1.23894,1614.4,1614.3,5.852]
[1745119923651,4.44674,1614.4,1614.3,8.3569]
[1745119923850,4.44674,1614.4,1614.3,9.12986747]
[1745119924051,4.44674,1614.4,1614.3,10.36888747]
[1745119924253,6.67474,1614.4,1614.3,9.12986747]
[1745119926548,6.67474,1614.4,1614.3,0.77296747]
[1745119926855,7.52564,1614.4,1614.3,0.77296747]
[1745119927057,9.24954,1614.4,1614.3,0.77296747]
[1745119927453,9.24954,1614.4,1614.1,2.4024]
[1745119927454,1.2391,1614.2,1614.1,2.4024]
[1745119927757,8.3689,1614.2,1614.1,2.4024]
[1745119928156,10.5969,1614.2,1614.1,2.4024]
[1745119928358,10.5969,1614.2,1614.1,3.17638106]
[1745119928852,10.5969,1614.2,1614.1,0.77398106]
[1745119929244,1.23925,1614.0,1613.9,0.8272]
[1745119929451,4.44705,1614.0,1613.9,2.5597]
[1745119929856,6.16995,1614.0,1613.9,2.5597]
[1745119930158,8.39795,1614.0,1613.9,2.5597]
[1745119931859,8.39795,1614.0,1613.8,0.8343]
[1745119931860,1.23933,1613.9,1613.8,0.8343]
[1745119932052,5.16933,1613.9,1613.8,0.8343]
[1745119932245,6.89123,1613.9,1613.8,0.8343]
[1745119932445,6.89123,1613.9,1613.6,0.8411]
[1745119932446,1.23948,1613.7,1613.6,0.8411]
[1745119932647,1.23956,1613.6,1613.5,0.8727]
[1745119932854,6.89146,1613.6,1613.5,0.8727]
[1745119933048,1.23964,1613.5,1613.4,1.11458181]
[1745119933254,6.16934,1613.5,1613.4,0.24988181]
[1745119933454,7.03414,1613.5,1613.4,0.24988181]
[1745119934154,9.26214,1613.5,1613.4,0.24988181]
[1745119937863,8.39734,1613.5,1613.4,0.24988181]
[1745119938064,8.39734,1613.5,1613.4,1.04138181]
[1745119938259,8.39734,1613.5,1613.4,0.24988181]
[1745119938865,1.23979,1613.3,1613.2,2.4737]
[1745119939067,8.37959,1613.3,1613.2,2.4737]
[1745119939367,10.60759,1613.3,1613.2,2.4737]
[1745119941064,9.3678,1613.3,1612.7,5.852]
[1745119941260,9.3678,1613.3,1612.9,0.8577]
[1745119941261,4.44786,1613.0,1612.9,0.8577]
[1745119941455,1.24017,1612.8,1612.7,1.24025]
[1745119941656,1.24025,1612.7,1612.6,1.7529]
[1745119941851,1.24023,1612.8,1612.6,2.99323]
[1745119942161,4.44803,1612.8,1612.7,1.7529]
[1745119943165,12.9829,1612.8,1612.2,3.2078]
[1745119943364,4.44828,1612.4,1612.3,1.7102]
[1745119943568,3.2078,1612.6,1612.5,1.24039]
[1745119943759,6.89279,1612.7,1612.4,1.24042]
[1745119943960,4.44813,1612.6,1612.5,1.7102]
[1745119944261,6.16863,1612.6,1612.5,1.7102]
[1745119944465,3.2078,1612.6,1612.5,2.5167]
[1745119944670,3.2078,1612.6,1612.5,3.3297]
[1745119944858,10.356,1612.8,1612.6,1.24031]
[1745119945056,7.1408,1612.8,1612.7,1.24025]
[1745119945555,3.933,1612.8,1612.7,2.95045]
[1745119945753,3.933,1613.0,1612.7,8.7102]
[1745119945957,3.933,1613.0,1612.9,1.2401]
[1745119946159,3.933,1613.0,1612.9,5.4681]
[1745119946361,3.933,1613.0,1612.9,12.9951]
[1745119946765,3.933,1613.0,1612.9,18.8471]
[1745119946967,1.23997,1613.1,1612.9,13.84705]
[1745119947163,5.17292,1613.2,1613.0,1.7275]
[1745119947365,5.17292,1613.2,1613.1,0.8611]
[1745119947861,6.92202,1613.2,1613.1,0.8611]
[1745119948870,3.933,1613.2,1613.1,2.10104]
[1745119949065,3.933,1613.2,1613.1,2.5886]
[1745119949264,3.933,1613.2,1613.1,3.82854]
[1745119952066,6.161,1613.2,1613.1,3.82854]
[1745119952472,7.40087,1613.2,1613.1,2.5886]
[1745119953067,7.40087,1613.2,1612.9,0.8168]
[1745119953068,6.161,1613.2,1612.9,0.8168]
[1745119953274,1.24002,1613.0,1612.9,5.4169]
[1745119953467,1.2401,1612.9,1612.8,2.0]
[1745119953670,1.24017,1612.8,1612.6,3.84042]
[1745119953869,3.2078,1612.7,1612.1,3.2078]
[1745119954074,4.44826,1612.5,1612.3,1.24054]
[1745119954269,4.44826,1612.5,1612.3,2.98354]
[1745119954575,6.10687,1612.5,1612.2,4.0977]
[1745119954763,1.24049,1612.4,1612.2,4.0977]
[1745119954961,6.10685,1612.5,1612.2,4.0977]
[1745119955163,4.8664,1612.5,1612.2,4.0977]
[1745119955371,1.24049,1612.4,1612.2,4.0977]
[1745119956467,4.44824,1612.5,1612.3,1.24054]
[1745119956672,3.2078,1612.5,1612.2,0.8571]
[1745119956869,1.24052,1612.4,1612.2,4.09771]
[1745119957371,1.24052,1612.4,1612.2,4.09772]
[1745119957679,1.24054,1612.4,1612.2,4.09774]
[1745119957877,2.93374,1612.4,1612.2,4.09774]
[1745119958973,3.2078,1612.3,1612.1,0.8167]
[1745119959186,11.0257,1612.3,1611.8,6.7239]
[1745119959369,1.24079,1612.0,1611.9,2.0]
[1745119959672,1.24087,1611.9,1611.8,2.8719]
[1745119959868,2.83077,1611.9,1611.8,0.8719]
[1745119960379,6.03858,1611.9,1611.7,1.24098]
[1745119960574,6.03858,1611.9,1611.7,3.24098]
[1745119960962,6.03858,1611.9,1611.7,3.24096]
[1745119961168,6.03858,1611.9,1611.7,2.0]
[1745119961368,6.03858,1611.9,1611.7,3.24096]
[1745119962172,1.24094,1611.8,1611.7,2.0]
[1745119962376,1.24094,1611.8,1611.3,1.6715]
[1745119962377,1.7176,1611.8,1611.3,1.6715]
[1745119962576,1.24117,1611.6,1611.4,2.0]
[1745119962773,8.4489,1611.7,1611.4,2.0]
[1745119962981,2.95871,1611.6,1611.4,3.24123]
[1745119963680,1.7176,1611.6,1611.4,3.24123]
[1745119963873,2.9587,1611.6,1611.4,3.24123]
[1745119964073,1.7176,1611.6,1611.4,5.46923]
[1745119964380,3.2078,1611.7,1611.4,4.228]
[1745119964571,4.001,1611.9,1611.8,1.24094]
[1745119964773,4.001,1611.9,1611.8,3.24094]
[1745119965482,3.2078,1612.0,1611.9,3.24087]
[1745119966079,4.9283,1612.0,1611.9,3.24087]
[1745119966483,4.9283,1612.0,1611.9,2.0]
[1745119967082,4.9283,1612.0,1611.9,3.24087]
[1745119967295,4.9283,1612.0,1611.9,2.0]
[1745119967575,4.9283,1612.0,1611.9,3.24087]
[1745119967779,4.9283,1612.0,1611.9,2.0]
[1745119967978,1.24087,1611.9,1611.8,2.0]
[1745119968181,1.24102,1611.7,1611.6,2.0]
[1745119968482,1.24125,1611.4,1611.3,2.0]
[1745119968676,4.44904,1611.5,1611.2,2.06494]
[1745119968872,5.6281,1611.4,1611.2,2.0]
[1745119969183,6.07523,1611.3,1611.2,2.228]
[1745119970185,4.8339,1611.3,1611.2,2.228]
[1745119970687,4.8339,1611.3,1611.2,3.46941]
[1745119971188,4.8339,1611.3,1611.2,2.228]
[1745119971377,4.8339,1611.3,1611.2,3.46941]
[1745119971877,4.8339,1611.3,1611.2,2.228]
[1745119971878,6.07523,1611.3,1611.2,2.228]
[1745119972192,6.07523,1611.3,1611.0,1.24152]
[1745119972383,1.24141,1611.2,1611.0,3.24152]
[1745119972585,1.6326,1611.1,1611.0,3.24152]
[1745119973086,1.6326,1611.1,1611.0,4.228]
[1745119973488,1.6326,1611.1,1611.0,5.46956]
[1745119973684,3.2078,1611.3,1611.2,1.24141]
[1745119973884,3.2078,1611.3,1611.2,3.24141]
[1745119974084,3.2078,1611.3,1611.2,5.46941]
[1745119974286,3.2078,1611.3,1611.2,6.27951]
[1745119974688,4.8093,1611.3,1611.2,6.27951]
[1745119974879,4.8093,1611.3,1611.2,5.0381]
[1745119975080,4.8093,1611.3,1611.2,6.27951]
[1745119975276,4.8093,1611.3,1611.2,5.0381]
[1745119975277,6.05063,1611.3,1611.2,5.0381]
[1745119975490,6.05063,1611.3,1611.2,4.228]
[1745119976086,4.8093,1611.3,1611.2,4.228]
[1745119976287,4.8093,1611.3,1611.2,3.24141]
[1745119976487,3.2078,1611.3,1611.2,3.24141]
[1745119976988,4.44913,1611.3,1611.2,0.57193]
[1745119977181,12.9859,1611.3,1610.4,3.2078]
[1745119977381,12.9859,1611.3,1610.8,1.24167]
[1745119977382,3.2078,1611.1,1610.8,1.24167]
[1745119977587,2.93158,1611.0,1610.7,1.24174]
[1745119977892,1.69,1610.9,1610.8,2.90661]
[1745119978191,7.2108,1611.1,1610.8,1.6649]
[1745119978383,1.24171,1610.8,1610.7,2.228]
[1745119978583,5.47271,1610.8,1610.7,2.228]
[1745119978785,7.16271,1610.8,1610.7,2.228]
[1745119980782,7.16271,1610.8,1610.0,3.2078]
[1745119980783,18.00401632,1610.8,1610.0,3.2078]
[1745119981093,1.24214,1610.3,1610.0,8.2971]
[1745119981295,4.231,1610.3,1610.2,1.24214]
[1745119981683,4.231,1610.5,1610.4,1.24195]
[1745119981893,4.231,1610.6,1610.5,1.24194]
[1745119982086,4.231,1610.6,1610.5,3.46994]
[1745119982289,4.231,1610.6,1610.5,5.46994]
[1745119982497,3.2078,1610.7,1610.5,4.228]
[1745119982701,3.2078,1610.7,1610.6,2.0]
[1745119982996,4.808,1610.7,1610.6,2.0]
[1745119983196,9.808,1610.7,1610.5,2.228]
[1745119983397,3.72197,1610.6,1610.5,2.228]
[1745119983790,8.72197,1610.6,1610.5,2.228]
[1745119984097,3.72197,1610.6,1610.5,2.228]
[1745119984394,3.2078,1610.7,1610.5,3.46994]
[1745119984594,4.8806,1610.7,1610.6,1.7108]
[1745119984795,4.8806,1610.7,1610.6,2.95267]
[1745119984998,4.232,1610.8,1610.7,1.24177]
[1745119985189,4.232,1610.8,1610.7,2.95257]
[1745119985492,4.232,1610.8,1610.7,1.7108]
[1745119985688,4.232,1610.8,1610.7,2.95259]
[1745119985689,5.9048,1610.8,1610.7,2.95259]
[1745119985891,5.9048,1610.8,1610.7,1.7108]
[1745119986092,5.9048,1610.8,1610.7,5.18059]
[1745119986601,5.9048,1610.8,1610.7,3.9388]
[1745119987395,7.14651,1610.8,1610.7,2.228]
[1745119987995,5.9048,1610.8,1610.7,3.46979]
[1745119988196,5.9048,1610.8,1610.7,2.228]
[1745119988496,4.232,1610.8,1610.7,2.228]
[1745119988696,3.2078,1610.9,1610.8,1.24171]
[1745119988995,3.2078,1610.9,1610.8,5.81571]
[1745119989300,3.2078,1610.9,1610.8,6.69431]
[1745119990188,4.232,1611.0,1610.9,1.24164]
[1745119990388,9.1158,1611.2,1610.9,2.85864]
[1745119990389,14.9688,1611.2,1610.9,2.85864]
[1745119990597,16.21026,1611.2,1611.0,1.24155]
[1745119990793,16.21026,1611.2,1611.0,1.617]
[1745119990994,8.3046,1611.4,1611.0,1.617]
[1745119991298,8.68108,1611.4,1611.2,1.24138]
[1745119991494,8.68108,1611.4,1611.3,1.617]
[1745119992192,7.4398,1611.4,1611.3,1.617]
[1745119992595,9.1901,1611.4,1611.3,1.617]
[1745119993290,9.1901,1611.4,1611.3,2.85833]
[1745119993497,9.1901,1611.4,1611.3,1.617]
[1745119993700,7.4398,1611.6,1611.4,1.24118]
[1745119993995,8.6809,1611.6,1611.5,1.6732]
[1745119994201,8.6809,1611.6,1611.4,0.8]
[1745119994202,1.24117,1611.5,1611.4,2.8]
[1745119994388,2.99147,1611.5,1611.4,4.4732]
[1745119994592,1.7503,1611.5,1611.4,5.71445]
[1745119995402,8.68095,1611.6,1611.4,5.71445]
[1745119995603,9.0564,1611.6,1611.5,2.88117]
[1745119997102,10.2975,1611.6,1611.5,1.64]
[1745119997296,10.2975,1611.6,1611.3,1.2413]
[1745119997297,1.24122,1611.5,1611.3,1.2413]
[1745119997606,7.4398,1611.6,1611.5,1.24117]
[1745119997908,8.6809,1611.6,1611.4,1.2412]
[1745119998098,3.2078,1611.6,1611.5,1.24117]
[1745119998406,3.2078,1611.8,1611.6,1.24107]
[1745119998706,10.7605,1611.8,1611.3,1.24128]
[1745119998895,10.7605,1611.8,1611.3,3.24128]
[1745119998896,1.24119,1611.5,1611.3,3.24128]
[1745119999207,4.44899,1611.5,1611.3,3.24128]
[1745119999702,6.09369,1611.5,1611.3,3.24128]
[1745120000314,1.6447,1611.4,1611.3,3.24128]
[1745120001304,2.88595,1611.4,1611.3,2.0]
[1745120002296,1.6447,1611.4,1611.3,3.24133]
[1745120002497,2.88595,1611.4,1611.3,3.24133]
[1745120003303,1.6447,1611.4,1611.3,3.24133]
[1745120003907,2.88595,1611.4,1611.3,3.24133]
[1745120004110,1.6447,1611.4,1611.3,3.24133]
[1745120004809,1.6447,1611.4,1611.3,4.11633]
[1745120005013,4.9177,1611.5,1611.4,1.24125]
[1745120005212,3.2078,1611.5,1611.4,7.08165]
[1745120005915,4.44897,1611.5,1611.4,3.46925]
[1745120006211,6.15887,1611.5,1611.3,2.92107]
[1745120006410,6.15887,1611.5,1611.3,4.92107]
[1745120006608,1.7099,1611.4,1611.3,4.92107]
[1745120007014,3.2078,1611.5,1611.4,1.24125]
[1745120007216,3.2078,1611.5,1611.4,2.85365]
[1745120007217,4.9177,1611.5,1611.4,2.85365]
[1745120007818,6.15887,1611.5,1611.4,1.6124]
[1745120008409,6.15887,1611.5,1611.3,2.92109]
[1745120008612,1.24133,1611.3,1611.2,1.6773]
[1745120008810,2.86261,1611.4,1611.2,2.91867]
[1745120009402,1.6213,1611.3,1611.2,2.91867]
[1745120010412,2.86263,1611.3,1611.2,2.91867]
[1745120011414,1.6213,1611.3,1611.2,2.91867]
[1745120012010,4.44904,1611.5,1611.3,1.2413]
[1745120012314,1.7042,1611.4,1611.3,2.8673]
[1745120013303,4.232,1611.6,1611.5,1.24117]
[1745120013507,4.232,1611.6,1611.5,3.24117]
[1745120013709,1.606,1611.7,1611.6,1.2411]
[1745120014113,3.834,1611.7,1611.6,1.2411]
[1745120015305,2.228,1611.7,1611.6,1.2411]
[1745120016109,13.05994,1611.8,1611.6,1.2411]
[1745120016309,13.05994,1611.8,1611.7,1.6881]
[1745120016711,11.819,1611.8,1611.6,1.24109]
[1745120016904,1.7282,1611.7,1611.6,1.24109]
[1745120017718,10.213,1611.8,1611.7,1.24102]
[1745120017915,4.305,1611.8,1611.7,1.24102]
[1745120018412,4.305,1611.8,1611.7,3.24102]
[1745120018812,1.7282,1611.9,1611.8,3.24094]
[1745120019019,4.305,1612.0,1611.9,1.24087]
[1745120019212,11.31004148,1612.1,1612.0,1.24079]
[1745120019419,8.10224148,1612.1,1612.0,3.24079]
[1745120019718,15.37609148,1612.2,1612.1,1.24071]
[1745120020016,14.13544148,1612.2,1612.1,1.24071]
[1745120020215,16.36344148,1612.2,1612.1,1.24071]
[1745120020419,14.63524148,1612.2,1612.1,3.24071]
[1745120021618,16.27444148,1612.2,1612.1,3.24071]
[1745120022204,11.96944148,1612.2,1612.1,3.24071]
[1745120023122,3.8672,1612.2,1612.1,3.24071]
[1745120023314,5.10784,1612.2,1612.1,2.0]
[1745120023614,1.24071,1612.1,1612.0,1.6572]
[1745120023817,2.94501,1612.1,1612.0,1.6572]
[1745120024116,5.17301,1612.1,1612.0,1.6572]
[1745120024820,8.38081,1612.1,1612.0,1.6572]
[1745120025517,1.24079,1612.0,1611.9,1.7215]
[1745120025722,1.24087,1611.9,1611.8,1.7474]
[1745120026022,1.24094,1611.8,1611.7,0.8467]
[1745120026215,2.96804,1611.8,1611.7,2.8467]
[1745120026518,1.7271,1611.8,1611.7,4.08772]
[1745120026720,1.7271,1611.8,1611.7,5.83512]
[1745120028925,1.24084,1612.0,1611.8,1.24094]
[1745120029114,5.13814,1612.0,1611.8,2.84844]
[1745120029528,5.13814,1612.0,1611.9,1.6075]
[1745120029927,5.13814,1612.0,1611.8,1.24089]
[1745120030126,1.6693,1611.9,1611.8,1.24089]
[1745120030329,1.6693,1611.9,1611.8,2.84839]
[1745120031931,2.91017,1611.9,1611.8,1.6075]
[1745120032227,1.24094,1611.8,1611.7,0.8467]
[1745120032418,2.96414,1611.8,1611.7,2.4413]
[1745120033127,2.96414,1611.8,1611.7,3.68232]
[1745120035323,1.7232,1611.8,1611.7,3.68232]
[1745120037117,2.96414,1611.8,1611.7,2.4413]
[1745120037322,2.96414,1611.8,1611.7,3.68232]
[1745120038134,5.19214,1611.8,1611.7,3.68232]
[1745120039024,5.19214,1611.8,1611.7,2.4413]
[1745120039224,2.96414,1611.8,1611.7,0.8467]
[1745120039528,3.78564,1611.8,1611.7,2.08772]
[1745120040135,6.01364,1611.8,1611.7,2.08772]
[1745120040335,6.01364,1611.8,1611.7,0.8467]
[1745120040537,4.7727,1611.8,1611.6,2.08444]
[1745120040742,1.6691,1611.7,1611.6,4.08444]
[1745120041128,1.6691,1611.7,1611.6,4.9073226]
[1745120041328,1.6691,1611.7,1611.6,6.6023226]
[1745120041532,0.8215,1611.8,1611.7,1.24102]
[1745120041736,0.8215,1611.8,1611.7,2.93602]
[1745120042234,2.228,1611.8,1611.7,2.93602]
[1745120042538,2.228,1611.8,1611.7,5.75954951]
[1745120043137,8.71567,1611.9,1611.8,1.24094]
[1745120043330,10.42427,1611.9,1611.8,1.24094]
[1745120043529,9.1834,1611.9,1611.8,1.24094]
[1745120043727,9.1834,1611.9,1611.8,2.10154]
[1745120043937,4.9164,1611.9,1611.8,2.10154]
[1745120044127,7.4748,1611.9,1611.8,2.10154]
[1745120044535,7.4748,1611.9,1611.8,2.92558632]
[1745120045526,3.2078,1611.9,1611.8,2.92558632]
[1745120045835,4.44867,1611.9,1611.8,1.68464632]
[1745120046038,4.9598,1611.9,1611.8,2.92558632]
[1745120046437,4.267,1612.0,1611.9,1.24087]
[1745120046736,5.50779,1612.0,1611.9,3.73607]
[1745120046937,7.21709,1612.0,1611.9,3.73607]
[1745120047136,2.95009,1612.0,1611.9,3.73607]
[1745120047636,1.7093,1612.0,1611.9,3.73607]
[1745120047838,4.267,1612.1,1612.0,1.24079]
[1745120048042,8.10224148,1612.2,1612.1,1.24071]
[1745120048343,8.10224148,1612.2,1612.1,4.06498429]
[1745120048535,8.10224148,1612.2,1612.1,6.57818429]
[1745120049137,8.10224148,1612.2,1612.1,9.78598429]
[1745120051540,8.10224148,1612.2,1612.1,14.78598429]
[1745120051940,8.10224148,1612.2,1612.1,14.78541446]
[1745120052639,4.266,1612.5,1612.4,1.24048]
[1745120052849,15.35583148,1612.6,1612.4,3.24048]
[1745120053033,17.58383148,1612.6,1612.4,3.24048]
[1745120053738,17.58383148,1612.6,1612.4,4.11558]
[1745120054137,17.58383148,1612.6,1612.5,1.7575]
[1745120054843,13.31783148,1612.6,1612.5,1.7575]
[1745120056543,16.52563148,1612.6,1612.5,1.7575]
[1745120057448,8.42339,1612.6,1612.5,1.7575]
[1745120060147,1.2404,1612.5,1612.4,0.8751]
[1745120060348,3.7241,1612.5,1612.4,2.8751]
[1745120060543,3.7241,1612.5,1612.4,0.8751]
[1745120060851,6.67618,1612.6,1612.5,1.2404]
[1745120061046,6.67618,1612.6,1612.5,2.1038]
[1745120061254,6.67618,1612.6,1612.5,3.7656]
[1745120061451,5.4358,1612.6,1612.5,3.7656]
[1745120061947,2.228,1612.6,1612.5,3.7656]
[1745120064450,2.228,1612.6,1612.5,5.7656]
[1745120065653,2.228,1612.6,1612.5,9.79475595]
[1745120066056,2.228,1612.6,1612.5,6.58695595]
[1745120066453,2.228,1612.6,1612.5,15.64675595]
[1745120066659,8.10224148,1612.9,1612.8,1.24017]
[1745120066847,8.10224148,1612.9,1612.8,3.24017]
[1745120067048,8.10224148,1612.9,1612.8,7.26913263]
[1745120067248,8.10224148,1612.9,1612.8,9.74213263]
[1745120068253,2.52624148,1612.9,1612.8,14.74213263]
[1745120068556,2.52624148,1612.9,1612.8,19.00713263]
[1745120069050,2.52624148,1612.9,1612.8,19.00626107]
[1745120069959,1.7058,1613.2,1612.8,13.50109107]
[1745120070161,1.7058,1613.2,1613.1,3.23994]
[1745120071059,1.7058,1613.2,1613.1,4.90434]
[1745120071261,3.9338,1613.2,1613.1,4.90434]
[1745120072260,5.17367,1613.2,1613.1,3.6644]
[1745120072463,5.17367,1613.2,1613.1,2.0]
[1745120072856,1.23994,1613.1,1613.0,5.852]
[1745120073050,5.06284,1613.1,1613.0,7.852]
[1745120073460,25.27873,1613.1,1612.6,0.8448]
[1745120073659,1.24022,1612.8,1612.6,2.0851]
[1745120073964,2.3986,1612.7,1612.6,2.0851]
[1745120074162,5.86685,1612.7,1612.6,0.8448]
[1745120074363,4.6266,1612.7,1612.6,2.08513]
[1745120076062,2.228,1612.7,1612.6,2.08513]
[1745120076461,2.228,1612.7,1612.6,3.83183]
[1745120077166,1.7016,1612.8,1612.7,1.24025]
[1745120077959,1.7016,1612.8,1612.7,2.91875]
[1745120078165,3.9296,1612.8,1612.7,2.91875]
[1745120078870,2.228,1612.8,1612.7,2.91875]
[1745120079169,2.595,1613.0,1612.9,1.2401]
[1745120080067,8.6878,1613.1,1613.0,1.24002]
[1745120080268,10.4244,1613.1,1613.0,1.6785]
[1745120081064,12.6524,1613.1,1613.0,1.6785]
[1745120081765,1.24002,1613.0,1612.9,0.8716]
[1745120081968,3.9646,1613.1,1613.0,1.24002]
[1745120082274,5.9143,1613.3,1613.2,1.23987]
[1745120083076,8.1423,1613.3,1613.2,2.08367]
[1745120083367,6.468,1613.3,1613.2,2.08367]
[1745120083564,2.228,1613.3,1613.2,2.08367]
[1745120085065,4.0469,1613.5,1613.2,0.8438]
[1745120085374,4.44761,1613.3,1613.1,2.8998]
[1745120085673,1.6278,1613.2,1613.1,2.8998]
[1745120086069,3.8558,1613.2,1613.1,2.8998]
[1745120086574,5.0957,1613.2,1613.0,2.89537]
[1745120086776,1.7141,1613.1,1613.0,2.89537]
[1745120087276,3.9421,1613.1,1613.0,4.49357]
[1745120090082,3.9421,1613.1,1613.0,3.2536]
[1745120090276,5.18204,1613.1,1612.9,1.24008]
[1745120090470,1.5953,1613.0,1612.9,1.24008]
[1745120091278,3.8233,1613.0,1612.8,7.85372]
[1745120091473,5.06338,1613.0,1612.9,1.2401]
[1745120091671,3.46802,1613.0,1612.9,1.2401]
[1745120091973,3.46802,1613.0,1612.8,7.85371]
[1745120094282,3.46802,1613.0,1612.9,1.2401]
[1745120094481,2.228,1613.0,1612.9,1.2401]
[1745120095077,2.228,1613.0,1612.9,2.06353462]
[1745120095473,2.228,1613.0,1612.9,2.06358463]
[1745120096076,8.46802,1613.0,1612.9,0.82348463]
[1745120096379,1.24012,1612.9,1612.7,1.24021]
[1745120096581,2.09682,1612.9,1612.8,2.06398966]
[1745120097284,4.32482,1612.9,1612.8,2.06398966]
[1745120097578,4.32482,1612.9,1612.8,0.82381966]
[1745120097784,4.32485,1612.9,1612.7,2.89163]
[1745120097985,1.24017,1612.8,1612.7,2.89163]
[1745120098279,6.67597,1612.8,1612.7,0.82382933]
[1745120098474,1.24025,1612.7,1612.6,1.24032]
[1745120098780,6.67603,1612.8,1612.6,2.06407313]
[1745120098980,6.67603,1612.8,1612.6,2.89582]
[1745120099185,6.67603,1612.8,1612.7,0.82373693]
[1745120099582,6.67603,1612.8,1612.7,0.82363561]
[1745120099880,6.67603,1612.8,1612.6,2.89582]
[1745120100081,1.24025,1612.7,1612.6,1.6555]
[1745120100280,5.4358,1612.8,1612.6,3.71947851]
[1745120100492,5.4358,1612.8,1612.6,2.89583]
[1745120101086,1.24025,1612.7,1612.6,2.89583]
[1745120101271,1.24025,1612.7,1612.6,2.47915847]
[1745120101975,1.24025,1612.7,1612.6,0.82365847]
[1745120102282,1.24033,1612.6,1612.5,1.6228]
[1745120103087,3.46833,1612.6,1612.5,1.6228]
[1745120103387,2.228,1612.6,1612.5,2.8632]
[1745120103580,2.228,1612.6,1612.5,3.6863188]
[1745120104090,14.55388,1613.0,1612.8,1.24016]
[1745120104387,8.64588,1613.0,1612.9,2.4732]
[1745120104682,10.35578,1613.0,1612.9,2.4732]
[1745120105076,12.58378,1613.0,1612.9,2.4732]
[1745120105788,1.24016,1612.9,1612.7,1.2402]
[1745120105977,2.84026,1612.9,1612.7,1.2402]
[1745120106177,1.24017,1612.8,1612.7,1.2402]
[1745120106383,2.84022,1612.9,1612.7,2.4108153]
[1745120106585,2.84022,1612.9,1612.8,1.24017]
[1745120106788,1.24025,1612.7,1612.6,2.08961]
[1745120106986,1.24025,1612.7,1612.6,4.50044973]
[1745120107184,3.46825,1612.7,1612.6,4.50044973]
[1745120107384,5.06835,1612.7,1612.6,4.50044973]
[1745120107587,5.06835,1612.7,1612.6,3.67731]
[1745120107881,3.8281,1612.7,1612.6,4.50044935]
[1745120108085,3.8281,1612.7,1612.6,4.50044417]
[1745120109288,1.6001,1612.7,1612.6,4.50040398]
[1745120109993,1.6001,1612.7,1612.6,4.5003542]
[1745120110189,0.8258,1612.8,1612.7,1.24025]
[1745120110389,2.96264,1612.9,1612.7,2.98645]
[1745120110984,2.96264,1612.9,1612.8,1.6484]
[1745120111285,5.19064,1612.9,1612.8,2.88857]
[1745120111480,2.228,1612.9,1612.8,2.88857]
[1745120111688,2.228,1612.9,1612.8,6.91929096]